Cogmind - Beta 11 @@@ ROGUE MODE // 2022.03.27 @ 13:56:26 Player: POG Result: Destroyed by 8R-AWN with 8R-AWN's Boregun Performance ------------- Evolutions (0) 0 Regions Visited (3) 600 Robots Destroyed (13) 65 Value Destroyed (257) 257 Prototype IDs (23) 460 Alien Tech Used (0) 0 Bonus (252) 252 TOTAL SCORE: 1634 Bonus ------- Aligned with FarCom 300 Friendly Fire -48 Cogmind --------- Core Integrity 0/250 Matter 300/300 Energy 61/100 System Corruption 3% Temperature Cool (0) Movement Core (350) Ox6 Location -10/Exiles Parts ------- > --- POWER (1) -------- (None) > --- PROPULSION (2) --- (None) > --- UTILITY (2) ------ Large Storage Unit > --- WEAPON (2) ------- (None) > --- INVENTORY (15) --- Wheel Improved Heat Sink Compact Matter Pod (150) Rocket Launcher Peak State ------------ > --- POWER ------------ Light Nuclear Core > --- PROPULSION ------- Wheel Wheel > --- UTILITY ---------- Large Storage Unit Seismic Detector > --- WEAPON ----------- YOLO Cannon > --- INVENTORY -------- Wheel Wheel Improved Heat Sink Compact Matter Pod ECM Suite Rocket Launcher [Rating: 28] Favorites ----------- Power Ion Engine Engine Ion Engine Power Core Light Nuclear Core Propulsion Wheel Wheel Wheel Utility Seismic Detector Device Seismic Detector Storage Small Storage Unit Weapon Assault Rifle Energy Cannon YOLO Cannon Ballistic Gun Assault Rifle Build | -11 -10 -10 -10 ------- Run | Scr Mat Min Exi Slots Evolved . | . . . . Power . | . . . . Propulsion . | . . . . Utility . | . . . . Weapon . | . . . . Parts Attached 11 | 7 . . 4 Power 2 | 1 . . 1 Engine 1 | 1 . . . Core 1 | . . . 1 Reactor . | . . . . Propulsion 3 | 2 . . 1 Treads . | . . . . Leg . | . . . . Wheel 3 | 2 . . 1 Hover . | . . . . Flight . | . . . . Utility 3 | 2 . . 1 Device 1 | 1 . . . Storage 2 | 1 . . 1 Processor . | . . . . Hackware . | . . . . Protection . | . . . . Artifact . | . . . . Weapon 3 | 2 . . 1 Energy Gun . | . . . . Energy Cannon 1 | . . . 1 Ballistic Gun 2 | 2 . . . Ballistic Cannon . | . . . . Launcher . | . . . . Special Weapon . | . . . . Impact Weapon . | . . . . Slashing Weapon . | . . . . Piercing Weapon . | . . . . Special Melee Weapon . | . . . . Unidentified Prototypes . | . . . . Parts Lost 6 | . . . 6 Power 1 | . . . 1 Propulsion 3 | . . . 3 Utility 1 | . . . 1 Weapon 1 | . . . 1 Highest Loss Streak 6 | . . . 6 To Critical Strikes 3 | . . . 3 Average Slot Usage (%) 97 | . 100 100 95 Engine 7 | . 14 14 . Core 6 | . . . 13 Wheel 27 | . 28 28 27 Device 13 | . 14 14 13 Storage 14 | . 14 14 14 Energy Cannon 1 | . . . 2 Ballistic Gun 25 | . 28 28 22 Naked Turns . | . . . . Heaviest Build 44 | 14 14 14 44 Greatest Support 20 | 20 20 20 20 Greatest Overweight (x) 12 | 3 . . 12 Average Overweight (x) . | . . . 1 Largest Inventory Capacity 15 | 8 8 8 15 Average Capacity 10 | 7 8 8 14 Most Carried 8 | 8 8 8 8 Average Carried 7 | 5 7 7 7 Final Capacity 15 | 8 8 8 15 Final Carried 8 | 6 8 8 4 Class Distribution -------------------- 100% | Mutant Dominant Class ---------------- Mutant | -10/Materials Mutant | -10/Mines Mutant | -10/Exiles Resources | -11 -10 -10 -10 ----------- Run | Scr Mat Min Exi Matter Collected 434 | 188 . 218 28 Remotely . | . . . . Salvage Created 330 | 12 . 318 . Parts 25 | 3 . 22 . Haulers Intercepted . | . . . . Recyclers Shooed . | . . . . Parts Field Recycled . | . . . . Retrieved Matter . | . . . . Parts Self-Destructed . | . . . . Prevented . | . . . . Kills | -11 -10 -10 -10 ------- Run | Scr Mat Min Exi Combat Hostiles Destroyed 10 | . . 10 . Guns 10 | . . 10 . Classes Destroyed 4 | 1 . 3 . Worker 1 | . . 1 . Tunneler 2 | 1 . 1 . Swarmer 6 | . . 6 . Grunt 4 | . . 4 . Best Kill Streak 3 | 1 . 3 . Combat Bots Only 3 | . . 3 . Max Kills in Single Turn 2 | 1 . 2 . Gunslinging 1 | . . 1 . Exploded . | . . . . Melee . | . . . . Uniques/NPCs Destroyed . | . . . . Combat | -11 -10 -10 -10 -------- Run | Scr Mat Min Exi Damage Taken 940 | . . 300 640 Core 254 | . . 92 162 Absorbed by Shields . | . . . . Core Remaining (%) 100 | 100 . . . Volleys Fired 40 | 4 . 30 6 Largest 2 | 2 . 2 2 Hottest 100 | 40 . 40 100 Shots Fired 76 | 8 . 60 8 Gun 72 | 8 . 60 4 Cannon 4 | . . . 4 Launcher . | . . . . Special . | . . . . Kinetic 72 | 8 . 60 4 Thermal 4 | . . . 4 Explosive . | . . . . Electromagnetic . | . . . . Robot Hit Streak 13 | 6 . 13 7 Robot Miss Streak 2 | 1 . 2 2 Penetration Max . | . . . . Secondary Targets 3 | . . 3 . Max Gunslinging Chain 1 | . . 1 . Shots Hit Robots 44 | 6 . 36 2 Core Hits 20 | 2 . 18 . Critical Kills 1 | . . 1 . Critical Parts Destroyed 1 | . . 1 . Critical Strikes 2 | . . 2 . Destroy 2 | . . 2 . Melee Attacks . | . . . . Impact . | . . . . Slashing . | . . . . Piercing . | . . . . Sneak Attacks . | . . . . Combat Hostiles . | . . . . Follow-up Attacks . | . . . . Damage Inflicted 467 | 63 . 373 31 Guns 436 | 63 . 373 . Cannons 17 | . . . 17 Explosions 14 | . . . 14 Melee . | . . . . Ramming . | . . . . Kinetic 436 | 63 . 373 . Thermal 31 | . . . 31 Explosive . | . . . . Electromagnetic . | . . . . Impact . | . . . . Slashing . | . . . . Piercing . | . . . . Highest Corruption 3 | . . . 3 Average Corruption 3 | . . . 3 Corruption Purged . | . . . . Corruption Blocked . | . . . . Overload Shots . | . . . . Overflow Damage . | . . . . Projectiles . | . . . . Explosions . | . . . . Melee . | . . . . Knockbacks . | . . . . Impact . | . . . . Kinetic . | . . . . Secondary . | . . . . Self-Inflicted Damage . | . . . . Shots . | . . . . Rammed . | . . . . Targets Rammed . | . . . . Kicked . | . . . . Crushed . | . . . . Highest Temperature 98 | . . 34 98 Average Temperature 27 | . . 13 39 Received Heat Transfer 241 | . . 141 100 Siege Activations . | . . . . Robots Corrupted . | . . . . Combat Hostiles . | . . . . Parts Fried . | . . . . Impact Corruptions . | . . . . Robots Melted . | . . . . Combat Hostiles . | . . . . Parts Melted . | . . . . Heat Transferred 80 | . . . 80 Parts Sabotaged . | . . . . Parts Stolen . | . . . . Parts Stripped . | . . . . Power Chain Reactions . | . . . . Missiles Intercepted . | . . . . Alert | -11 -10 -10 -10 ------- Run | Scr Mat Min Exi Peak Influence 303 | 5 34 303 . Initial 13 | . 3 13 . Average 119 | . 24 150 . Maximum Alert Level 1 | . . 1 . Low Security (%) 81 | 100 100 75 . Level 1 18 | . . 24 . Level 2 . | . . . . Level 3 . | . . . . Level 4 . | . . . . Level 5 . | . . . . High Security . | . . . . Max Security . | . . . . Squads Dispatched 1 | . 1 . . Investigation . | . . . . Extermination . | . . . . Reinforcement 1 | . 1 . . Assault . | . . . . Garrison . | . . . . Intercept . | . . . . Searches Triggered . | . . . . Construction Impeded . | . . . . Haulers Reinforced . | . . . . Active Scanning Responses . | . . . . Cargo Convoy Interrupts . | . . . . Stealth | -11 -10 -10 -10 --------- Run | Scr Mat Min Exi Distress Signals . | . . . . Communications Jammed . | . . . . Distress Signals . | . . . . Times Spotted 21 | . 3 10 8 Peak Tracking Total 9 | . 2 3 9 Tactical Retreats . | . . . . Traps | -11 -10 -10 -10 ------- Run | Scr Mat Min Exi Traps Triggered . | . . . . Indirectly . | . . . . Trap Hack Attempts . | . . . . Triggered . | . . . . Disarmed . | . . . . Reprogrammed . | . . . . Reused . | . . . . Traps Extracted . | . . . . Installed . | . . . . Triggered . | . . . . Machines | -11 -10 -10 -10 ---------- Run | Scr Mat Min Exi Machines Disabled 4 | . . 2 2 Max in Single Turn 2 | . . 1 2 Machines Sabotaged . | . . . . Garrisons Compromised . | . . . . Overloaded Fab Kills . | . . . . Hacking | -11 -10 -10 -10 --------- Run | Scr Mat Min Exi Machines Accessed 6 | . 3 . 3 Terminals 3 | . 3 . . Fabricators . | . . . . Repair Stations . | . . . . Recycling Units . | . . . . Scanalyzers . | . . . . Garrison Access . | . . . . Total Hacks 15 | . 3 . 12 Successful 15 | . 3 . 12 Failed . | . . . . Catastrophic . | . . . . Database Lockouts . | . . . . Manual 4 | . 3 . 1 Terminals 3 | . 3 . . Fabricators . | . . . . Repair Stations . | . . . . Recycling Units . | . . . . Scanalyzers . | . . . . Garrison Access . | . . . . Terminal Hacks 12 | . . . 12 Record 11 | . . . 11 EX-Prototype ID Bank 1 | . . . 1 Fabricator Hacks . | . . . . Repair Station Hacks . | . . . . Recycling Unit Hacks . | . . . . Scanalyzer . | . . . . Garrison Access Hacks . | . . . . Unauthorized Hacks 3 | . 3 . . Terminals 3 | . 3 . . Botnet 3 | . 3 . . Fabricators . | . . . . Repair Stations . | . . . . Recycling Units . | . . . . Scanalyzers . | . . . . Garrison Access . | . . . . Data Cores Recovered . | . . . . Used . | . . . . Hacking Detections 2 | . 2 . . Full Trace Events . | . . . . Feedback Events . | . . . . Feedback Blocked . | . . . . Robot Schematics Acquired . | . . . . Robots Built . | . . . . Authchips . | . . . . Time . | . . . . Total Robot Build Rating . | . . . . Part Schematics Acquired . | . . . . Parts Built . | . . . . Authchips . | . . . . Time . | . . . . Total Part Build Rating . | . . . . Parts Repaired . | . . . . Time . | . . . . Parts Recycled . | . . . . Recycled Matter . | . . . . Retrieved Matter . | . . . . Retrieved Components . | . . . . Parts Scanalyzed . | . . . . Part Schematics Acquired . | . . . . Parts Damaged . | . . . . Bothacking | -11 -10 -10 -10 ------------ Run | Scr Mat Min Exi Used RIF Installer . | . . . . Robots Hacked . | . . . . Non-combat . | . . . . Combat . | . . . . Robot Hacks Applied . | . . . . Relay Couplers Released . | . . . . Fabnet Peak Effective % . | . . . . Robots Rewired . | . . . . Allies Hacked . | . . . . Hacks Repelled . | . . . . Allies | -11 -10 -10 -10 -------- Run | Scr Mat Min Exi Total Allies . | . . . . Largest Group . | . . . . Highest-Rated Group . | . . . . Highest-Rated Ally . | . . . . Total Orders . | . . . . Ally Attacks . | . . . . Total Damage . | . . . . Kills . | . . . . Allies Corrupted . | . . . . Allies Melted . | . . . . Intel | -11 -10 -10 -10 ------- Run | Scr Mat Min Exi Robot Analysis Total . | . . . . Derelict Logs Recovered 1 | . . 1 . Drone Launches . | . . . . Drone Recoveries . | . . . . Exploration | -11 -10 -10 -10 ------------- Run | Scr Mat Min Exi Turns Passed 1663 | 86 110 675 792 Spaces Moved 1637 | 70 135 647 785 Core 22 | 21 . . 1 Treads . | . . . . Legs . | . . . . Wheels 1615 | 49 135 647 784 Hover . | . . . . Flight . | . . . . Fastest Speed 50 | 50 80 80 80 Average Speed 87 | 81 80 80 96 Slowest Speed 650 | 200 80 80 650 Overloaded Moves . | . . . . Propulsion Burnouts . | . . . . Robots Hopped . | . . . . Cave-ins Triggered . | . . . . Exploration Rate (%) 54 | 4 26 92 94 Regions Visited 3 Branch Regions 2 Pre-discovered Areas 2 | . . 1 1 Known Exits Taken . | . . . . Unknown Exits Taken 3 | 1 1 1 . Scrap Searched 3 | . . 3 . Spaces Dug . | . . . . Terrain Destroyed 62 | . . . 62 Melee . | . . . . Projectile 2 | . . . 2 AOE 60 | . . . 60 Terrain Rammed . | . . . . Walls Destroyed . | . . . . Machines Disabled . | . . . . Actions | -11 -10 -10 -10 --------- Run | Scr Mat Min Exi Total 1789 | 89 136 755 809 Wait 62 | . . 59 3 Move 1634 | 69 134 646 785 Hop . | . . . . Pick Up 24 | 9 2 10 3 Fast Attach 4 | 4 . . . Attach 5 | 3 . . 2 Detach . | . . . . Swap 2 | . . . 2 Drop 18 | . . 10 8 Fire 40 | 4 . 30 6 Melee . | . . . . Ram . | . . . . Kick . | . . . . Crush . | . . . . Escape Stasis . | . . . . Rewire . | . . . . Trap . | . . . . Miscellaneous . | . . . . Route ------- -11/Scrapyard -10/Materials -10/Mines (discovered 2 exits: [*Mat] / *Exi) -10/Exiles (discovered 2 exits: [*Min x2]) History --------- Turn | Location | Event 5 | -11/Scrapyard | Discovered new exit (range 15) 87 | -11/Scrapyard | Entered Materials 151 | -10/Materials | Discovered new exit (range 14) 197 | -10/Materials | Entered Mines 255 | -10/Mines | Learned location of Mines (-9) 311 | -10/Mines | Build established: Mutant 418 | -10/Mines | Discovered new exit (range 6) 475 | -10/Mines | Received a Rocket Launcher from a helpful Derelict 869 | -10/Mines | Deemed a non-threat by the Exiles lab entrance 869 | -10/Mines | Discovered new exit (range 5) 872 | -10/Mines | Entered Exiles 896 | -10/Exiles | Met 8R-AWN 908 | -10/Exiles | Met EX-HEX 966 | -10/Exiles | Met EX-DEC 981 | -10/Exiles | Visited The Gauntlet 1153 | -10/Exiles | Met EX-BIN 1170 | -10/Exiles | Aligned with FarCom system 1171 | -10/Exiles | Given EX-Vault access code 1217 | -10/Exiles | Opened EX-Vault 1224 | -10/Exiles | Found YOLO Cannon 1246 | -10/Exiles | Warned to stay clear of 0b10 Research branches 1309 | -10/Exiles | Learned location of Zion (-6) 1398 | -10/Exiles | Discovered new exit (range 14) 1579 | -10/Exiles | Discovered new exit (range 14) 1637 | -10/Exiles | Attacked by the Exiles 1649 | -10/Exiles | Core integrity fell below 50% 1653 | -10/Exiles | Core integrity fell below 20% 1664 | -10/Exiles | Destroyed by 8R-AWN with 8R-AWN's Boregun Last Messages --------------- 01650_ HV Slug penetrates Earth. 01652_ Seismic Detector destroyed. 01652_ System corrupted by crushing effect (+3). 01652_ Penetrated by HV Slug. 01652_ HV Slug penetrates Earth. 01652_ Penetrated by HV Slug. 01652_ Wheel destroyed. 01652_ HV Slug penetrates Earth. 01653_ Knocked back. 01654_ Penetrated by HV Slug. 01654_ HV Slug penetrates Wall. 01654_ Penetrated by HV Slug. 01654_ HV Slug penetrates Wall. 01656_ Wheel destroyed. 01660_ as-96380 destroyed. 01664_ Penetrated by HV Slug. 01664_ Critical hit (Destroy). 01664_ YOLO Cannon destroyed. 01664_ HV Slug penetrates Machine. 01664_ Penetrated by HV Slug. Map ----- +----------------------------------------------------+ | ?????????????????????????????????????????????????? | | ?????????????????????????????????????????????????? | | ?????????????????????????????????????????????????? | | ?????????????????????????????????????????????????? | | ?????????????????????????????????????????????????? | | ?????????????????????????????????????????????????? | | ?????????????????????????????????????????????????? | | ?????????????????????????????????????????????????? | | ?????????????????????????????????????????????????? | | ????????????????????????????????????????####?????? | | ???????????????????????????????????????## #?????? | | ??????????????????????????????????????## #?????? | | ??????????????????????????????????????# < #?????? | | ###?????????????#####?????????????????# #?????? | | ""##????????##?## #????????????????# #?????? | | """##??????## ## #??????????????## ##?????? | | " #??????# ?????????????## ##?????? | | """#???????# #????????????# #?????? | | " "#???????# #????????????# #?????? | | " "##??????# #???????????## #?????? | | ""###????# #??????????## # #?????? | | """#?????#; #??????????# ###?????? | | "#????### "##???????### ##???????? | | ##???# "######### #????????? | | ##?## a a # " ## ##????????? | | ### [![ a@ * ##????????? | | ## gaaa * #????????? | | #### ##???????? | | ""#?# "" ;;## ###?????? | | #"""##?####### ###;# * ###???? | | ######????????# ??###### ##??? | | ##?????????????## ??????### #??? | | ##????????????????###???????### #??? | | ""#?????????????????????????????### #??? | | "##??????????????????????????????#" ##?? | | """"""##???????????????????????????????#### ### | | #######???????????????????????????????????# # | | ??????????????????????????????????????????## | | ???????????????????????????????????????????### | | ?????????????????????????????????????????????# | | ?????????????????????????????????????????????## | | ??????????????????????????????????????????????#### | | ?????????????????????????????????????????????????? | | ?????????????????????????????????????????????????? | | ?????????????????????????????????????????????????? | | ?????????????????????????????????????????????????? | | ?????????????????????????????????????????????????? | | ?????????????????????????????????????????????????? | | ?????????????????????????????????????????????????? | | ?????????????????????????????????????????????????? | +----------------------------------------------------+ Best States ------------- Heat Dissipation 25 Energy Generation 14 Energy Capacity 250 Matter Stores 300 Matter Capacity 300 Sight Range 16 Terrain Scan Density 10 Evasion (%) 50 Item Schematics ----------------- None Robot Schematics ------------------ None Fabricated ------------ Nothing Alien Tech Used ----------------- None Achievements -------------- None Challenges ------------ None Game ------ Seed AssemblyRagnarokFirepult Manual? 0 Play Time 00:18:15 Cumulative 113.5 hours Start 2022.03.27 @ 13:40:10 End 2022.03.27 @ 13:56:26 Sessions 1 Manual Loads 0 Difficulty Rogue Special Mode None Game No. 40 Rogue 22 Adventurer 14 Explorer 4 Win Type - Total 14 Types 8/5/0/0/0/0/0/0/1 Lore% 50 Gallery% 57 Achievement% 57 Wizard Run 0 Options --------- ASCII 0 Keyboard 0 Movement Mouse Keybinds 0 Fullscreen 1 Font 18/SmallcapsGlow Map View 76x50 Tactical HUD 1 Map Filters NONE Filters NONE Steam 1 RUN: d6a92fbd-1439-4c0d-9be3-17027fc9f61a